bitfinex/quotes_ETHUSD_20251012
["timestamp","ask_amount","ask_price","bid_price","bid_amount"]
[1760299542213,0.121,4147.6,4146.9,0.12]
[1760299542910,0.121,4147.6,4146.3,0.002]
[1760299542911,2.41137604,4147.1,4146.3,0.002]
[1760299543215,2.41137604,4147.1,4146.3,2.41378517]
[1760299543390,2.3746,4147.0,4146.3,2.41378517]
[1760299543590,2.3746,4147.0,4146.3,0.002]
[1760299543591,1.92,4146.8,4146.3,0.002]
[1760299543812,2.41155764,4146.7,4146.3,0.002]
[1760299544011,0.4546,4146.7,4146.3,0.002]
[1760299544213,4.686554,4146.6,4146.3,0.002]
[1760299544412,2.3746,4146.6,4146.3,0.002]
[1760299544622,2.3746,4146.5,4146.3,0.002]
[1760299544807,0.4546,4146.5,4146.3,0.002]
[1760299545117,0.4546,4146.4,4146.3,0.002]
[1760299545708,2.3746,4146.4,4146.3,0.002]
[1760299545914,2.3246,4146.4,4146.3,0.002]
[1760299546113,1.92,4146.8,4146.3,0.002]
[1760299546416,2.41161484,4146.6,4146.3,0.002]
[1760299546723,8.750962,4147.1,4146.3,0.002]
[1760299546906,5.971243,4146.6,4146.3,0.002]
[1760299547089,2.41159465,4146.7,4146.3,0.002]
[1760299547289,2.41151404,4146.8,4146.3,0.002]
[1760299547502,6.18903536,4146.7,4146.3,0.002]
[1760299547703,1.92,4146.4,4146.3,0.002]
[1760299547917,24.89246465,4146.4,4146.3,0.002]
[1760299548082,25.29756465,4146.4,4146.3,0.002]
[1760299548282,29.52938551,4145.9,4145.8,0.002]
[1760299548522,29.62868551,4145.9,4145.8,0.002]
[1760299548810,30.38857751,4145.9,4145.8,0.002]
[1760299549399,25.65589451,4145.9,4145.8,0.002]
[1760299549803,5.46692151,4145.9,4145.8,0.002]
[1760299550006,10.57862525,4145.5,4145.4,0.002]
[1760299550545,11.61422525,4145.5,4145.4,0.002]
[1760299550816,19.11440425,4145.5,4145.4,0.002]
[1760299551025,16.09840425,4145.5,4145.4,0.002]
[1760299551601,2.41245666,4145.2,4144.2,2.41300497]
[1760299551816,2.41290139,4144.4,4143.3,0.002]
[1760299552018,1.92,4144.2,4143.3,0.002]
[1760299552217,2.41306348,4144.2,4143.3,0.002]
[1760299552436,0.1728,4143.4,4143.3,0.002]
[1760299552736,1.92,4144.0,4143.3,0.002]
[1760299553093,2.81317685,4143.4,4143.3,0.002]
[1760299553340,13.46149685,4143.4,4143.3,0.002]
[1760299553510,14.09509685,4143.4,4143.3,0.002]
[1760299553918,10.68331385,4143.4,4143.3,0.002]
[1760299554124,11.28231385,4143.4,4143.3,0.002]
[1760299554823,8.23546185,4143.4,4143.3,0.002]
[1760299555029,10.02567185,4143.4,4143.3,0.002]
[1760299555235,1.92,4143.4,4143.3,0.002]
[1760299555544,7.960983,4143.4,4143.3,0.002]
[1760299555845,6.82545,4143.4,4143.3,0.002]
[1760299556045,12.751221,4143.4,4143.3,0.002]
[1760299556358,10.488271,4143.4,4143.3,0.002]
[1760299557023,8.9607,4143.4,4143.3,0.002]
[1760299557630,2.3197,4143.4,4143.3,0.002]
[1760299557838,6.8007,4143.4,4143.3,0.002]
[1760299558145,1.92,4143.4,4143.3,0.002]
[1760299559168,1.92,4143.4,4143.3,2.4155351]
[1760299559461,1.92,4143.4,4143.3,2.65728861]
[1760299559813,2.41273522,4144.7,4143.3,2.65728861]
[1760299559814,0.3953,4144.6,4143.6,2.41335724]
[1760299560011,0.3953,4144.6,4143.4,2.41343026]
[1760299560012,7.7909,4144.5,4143.4,2.41343026]
[1760299560254,8.034289,4144.0,4143.3,0.002]
[1760299560415,1.92,4143.7,4143.3,0.002]
[1760299560618,2.848,4143.9,4143.3,0.002]
[1760299560814,0.3953,4144.0,4143.4,2.41347685]
[1760299561014,0.3953,4144.0,4143.5,2.41337431]
[1760299561227,0.3953,4144.0,4143.7,2.41328682]
[1760299561426,1.92,4144.5,4143.3,0.002]
[1760299561427,1.92,4143.8,4143.3,0.002]
[1760299561623,4.0,4143.5,4143.3,0.002]
[1760299561941,1.92,4143.6,4143.3,0.002]
[1760299562115,5.6013,4143.7,4143.3,0.002]
[1760299562116,1.92,4143.7,4143.3,0.002]
[1760299562319,0.071,4158.5,4143.3,0.002]
[1760299562320,2.3153,4144.1,4143.5,2.41341147]
[1760299562528,2.3153,4144.1,4143.3,0.002]
[1760299562529,0.3953,4144.1,4143.3,0.002]
[1760299562750,0.3953,4144.1,4143.3,2.41551806]
[1760299562943,2.3153,4144.1,4143.3,2.41551806]
[1760299563322,0.3953,4144.1,4143.4,2.41346537]
[1760299563523,0.12,4143.7,4143.4,2.41346537]
[1760299563728,0.3953,4145.1,4143.5,0.4434]
[1760299563912,0.12,4144.6,4143.6,0.12]
[1760299564116,0.12,4144.6,4143.3,0.002]
[1760299564117,1.92,4144.2,4143.8,2.41322855]
[1760299564439,0.3931,4144.2,4143.8,2.41322855]
[1760299564856,0.3931,4144.2,4143.9,2.41317706]
[1760299565218,0.3931,4144.2,4143.7,0.12]
[1760299565219,0.3931,4144.2,4144.0,2.41312556]
[1760299565419,0.5131,4144.6,4144.0,2.41312556]
[1760299565614,0.5131,4144.6,4143.9,2.41317393]
[1760299566020,0.5131,4144.6,4144.0,2.41311987]
[1760299566729,0.5131,4144.6,4143.9,2.41313568]
[1760299566927,0.5131,4144.6,4143.7,0.12]
[1760299566928,1.92,4144.4,4143.7,0.12]
[1760299567136,1.92,4144.0,4143.7,0.12]
[1760299567452,1.92,4143.4,4143.3,0.002]
[1760299567625,10.23499785,4143.4,4143.3,0.002]
[1760299567827,3.04725161,4143.1,4143.0,0.002]
[1760299568029,15.08209061,4143.1,4143.0,0.002]
[1760299568240,15.47319061,4143.1,4143.0,0.002]
[1760299568427,18.79277161,4143.1,4143.0,0.002]
[1760299568829,2.3111,4143.1,4143.0,0.002]
[1760299569446,5.267394,4143.1,4143.0,0.002]
[1760299569623,2.3111,4143.1,4143.0,0.002]
[1760299569954,1.92,4143.1,4143.0,0.002]
[1760299570939,1.92,4143.1,4143.0,2.41570987]
[1760299571142,2.3111,4143.1,4143.0,0.002]
[1760299572251,1.92,4143.1,4143.0,2.41570987]
[1760299572971,1.92,4143.1,4143.0,0.002]
[1760299573758,1.92,4143.1,4143.0,2.41570987]
[1760299573958,1.92,4143.1,4143.0,0.002]
[1760299574455,1.92,4143.1,4143.0,2.41570987]
[1760299575443,1.92,4143.1,4143.0,2.53570987]
[1760299575641,1.92,4143.1,4143.0,3.03106162]
[1760299575841,1.92,4143.1,4143.0,2.53570987]
[1760299577056,0.12,4143.6,4143.5,2.4134186]
[1760299577362,0.1794,4145.2,4143.5,2.4134186]
[1760299577363,2.341718,4144.8,4144.1,2.41301627]
[1760299577558,2.341718,4144.8,4144.2,2.41298797]
[1760299577752,2.341718,4144.8,4144.3,2.41294782]
[1760299577947,0.3911,4144.7,4144.3,2.41294416]
[1760299578160,0.3911,4144.6,4143.5,0.4641]
[1760299578328,3.587314,4144.5,4143.0,0.002]
[1760299578533,3.187416,4144.1,4143.1,2.41365161]
[1760299578730,0.3911,4144.0,4143.3,2.41349525]
[1760299578931,2.16378,4143.9,4143.3,2.41349525]
[1760299579153,0.3911,4143.8,4143.0,0.002]
[1760299579553,0.3911,4143.8,4143.3,2.41552664]
[1760299579751,0.3911,4143.7,4143.3,2.41552664]
[1760299580136,0.6336,4144.2,4143.3,0.002]
[1760299580538,0.3911,4144.1,4143.3,0.002]
[1760299580768,2.3111,4144.5,4143.3,0.002]
[1760299580969,3.023025,4144.4,4143.4,2.41347685]
[1760299581159,3.967016,4144.4,4143.7,2.41328061]
[1760299581360,1.92,4144.4,4143.7,2.41328061]
[1760299581672,1.92,4144.4,4143.8,2.41324386]
[1760299582239,1.92,4144.4,4143.5,2.41340947]
[1760299582240,1.92,4144.1,4143.7,2.41328558]
[1760299582552,7.089761,4144.2,4143.3,0.002]
[1760299582553,2.41329575,4143.8,4143.3,0.002]
[1760299582754,1.92,4143.7,4143.3,0.002]
[1760299582956,10.21664185,4143.4,4143.3,0.002]
[1760299583266,25.7518296,4143.4,4143.3,0.002]
[1760299583460,26.1429296,4143.4,4143.3,0.002]
[1760299583767,41.0857176,4143.4,4143.3,0.002]
[1760299584838,43.3917796,4143.4,4143.3,0.002]
[1760299585051,33.04725161,4143.1,4143.0,0.002]
[1760299585247,34.96725161,4143.1,4143.0,0.002]
[1760299585653,35.35835161,4143.1,4143.0,0.002]
[1760299586049,8.98949761,4143.1,4143.0,0.002]
[1760299587085,35.35835161,4143.1,4143.0,0.002]
[1760299587584,30.18504136,4143.1,4143.0,0.002]
[1760299587941,51.18306322,4143.1,4143.0,0.002]
[1760299589152,0.6336,4142.9,4142.4,0.002]
[1760299589405,31.48358004,4142.2,4142.1,0.002]
[1760299589558,47.65236779,4142.2,4142.1,0.002]
[1760299589765,48.04346779,4142.2,4142.1,0.002]
[1760299589968,50.89406379,4142.2,4142.1,0.002]
[1760299590372,50.32803179,4142.2,4142.1,0.002]
[1760299590974,37.47219679,4142.2,4142.1,0.002]
[1760299591177,23.00777979,4142.2,4142.1,0.002]
[1760299591849,6.612022,4142.2,4142.1,0.002]
[1760299592045,10.902853,4142.2,4142.1,0.002]
[1760299592445,10.126902,4142.2,4142.1,0.002]
[1760299593056,2.3111,4142.2,4142.1,0.002]
[1760299593265,10.090927,4142.2,4142.1,0.002]
[1760299594276,12.51709504,4142.2,4142.1,0.002]
[1760299594886,13.15069504,4142.2,4142.1,0.002]
[1760299595263,35.35887604,4142.2,4142.1,0.002]
[1760299595464,32.33609104,4142.2,4142.1,0.002]
[1760299595992,30.0,4142.0,4139.8,2.41552849]
[1760299596163,7.879439,4140.8,4139.2,2.41592578]
[1760299596362,2.41487827,4141.0,4139.2,2.41592578]
[1760299596363,0.3895,4140.7,4139.8,2.4155254]
[1760299596961,0.3895,4140.7,4139.6,2.41569167]
[1760299597160,7.621256,4140.5,4139.3,0.30932258]
[1760299597392,0.3895,4140.4,4138.7,0.2164]
[1760299597562,0.6336,4140.1,4138.0,0.2155]
[1760299597766,0.3895,4140.0,4138.8,2.41610493]
[1760299597979,0.6336,4139.8,4139.0,2.4160208]
[1760299598175,0.6336,4139.8,4138.2,2.41650959]
[1760299598176,0.374,4139.7,4138.8,2.41611004]
[1760299598359,0.374,4139.7,4139.1,2.41593414]
[1760299598691,0.374,4139.7,4139.4,0.002]
[1760299598993,0.374,4139.6,4139.4,0.002]
[1760299599588,0.374,4139.5,4139.4,0.002]
[1760299600196,0.2325,4139.9,4139.4,0.002]
[1760299600400,0.6336,4140.5,4139.7,2.4156233]
[1760299600576,1.92,4140.3,4139.4,0.002]
[1760299600777,1.92,4139.9,4139.4,0.002]
[1760299600973,3.13,4140.1,4139.4,2.4178086]
[1760299601174,1.92,4140.0,4139.4,2.4178086]
[1760299601572,4.155,4140.1,4139.4,0.002]
[1760299601900,2.145,4140.0,4139.4,0.002]
[1760299602100,1.92,4140.1,4139.4,0.002]
[1760299602398,2.145,4140.0,4139.4,0.002]
[1760299602570,4.439,4140.0,4139.4,0.002]
[1760299602771,1.92,4139.9,4139.4,0.002]
[1760299603186,2.41541037,4140.1,4139.4,0.002]
[1760299603373,0.374,4139.8,4139.4,0.002]
[1760299603900,0.374,4139.7,4139.4,0.002]
[1760299604419,1.92,4139.9,4139.4,0.002]
[1760299604600,0.374,4139.6,4139.4,0.002]
[1760299604976,0.374,4140.2,4139.4,0.002]
[1760299605176,0.374,4140.2,4139.4,2.41779689]
[1760299605410,0.374,4140.2,4139.5,2.41569568]
[1760299605572,0.2325,4140.7,4139.5,0.24177969]
[1760299605777,0.6065,4140.7,4139.7,2.41561682]
[1760299606078,0.12,4140.3,4139.6,2.53568701]
[1760299606286,0.494,4140.3,4139.9,2.41551531]
[1760299606482,0.494,4140.3,4139.8,2.4155673]
[1760299606868,0.494,4140.3,4139.9,2.41550275]
[1760299607268,0.494,4140.3,4139.7,2.41563398]
[1760299607475,0.494,4140.3,4139.8,2.41556528]
[1760299607884,0.494,4140.3,4139.6,0.12]
[1760299608071,0.494,4140.3,4139.4,0.002]
[1760299608072,6.102106,4140.1,4139.4,0.002]
[1760299608284,0.6336,4139.9,4139.4,0.002]
[1760299608710,0.6336,4139.7,4139.4,0.002]
[1760299609129,2.41530244,4140.3,4139.5,2.4157381]
[1760299609412,0.6336,4140.5,4139.7,2.41563398]
[1760299609597,2.5536,4140.5,4139.8,2.4155527]
[1760299609997,0.6336,4140.5,4139.8,2.4155527]
[1760299610221,0.6336,4140.3,4139.6,2.415634]
[1760299610515,0.6336,4140.3,4139.7,2.41561575]
[1760299610819,0.6336,4140.3,4139.6,2.41567792]
[1760299611186,0.6336,4140.3,4139.7,2.41562236]
[1760299611187,1.0,4140.0,4139.7,2.41562236]
[1760299614024,1.0076,4139.7,4139.4,0.002]
[1760299614229,0.374,4139.6,4139.4,0.002]
[1760299614723,1.0076,4139.5,4139.4,0.002]
[1760299616127,0.6336,4139.5,4139.4,0.002]
[1760299616633,1.0076,4139.5,4139.4,0.002]
[1760299616995,0.6336,4139.5,4139.4,0.002]
[1760299617196,0.6336,4139.9,4139.5,2.41575069]
[1760299617539,1.0076,4139.9,4139.5,2.41575069]
[1760299617742,0.374,4139.8,4139.5,2.41575069]
[1760299618033,0.374,4139.8,4139.4,0.002]
[1760299618034,0.494,4139.8,4139.4,0.002]
[1760299618201,0.374,4139.7,4139.4,0.002]
[1760299618602,0.374,4139.6,4139.4,0.002]
[1760299619128,0.374,4139.5,4139.4,0.002]
[1760299619301,0.12,4139.8,4139.4,2.41780905]
[1760299619504,0.12,4139.8,4139.5,2.41574676]
[1760299619818,0.374,4139.8,4139.5,2.41574676]
[1760299620014,0.6336,4139.9,4139.4,0.002]
[1760299620015,0.374,4139.7,4139.4,0.002]
[1760299620211,0.6336,4139.6,4139.4,0.002]
[1760299620715,21.58293369,4139.5,4139.4,0.002]
[1760299621406,21.12129969,4139.5,4139.4,0.002]
[1760299621611,20.74440369,4139.5,4139.4,0.002]
[1760299621832,5.34335069,4139.5,4139.4,0.002]
[1760299622031,20.75161269,4139.5,4139.4,0.002]
[1760299622329,36.28680044,4139.5,4139.4,0.002]
[1760299622708,21.17139563,4139.5,4139.4,0.002]
[1760299623032,51.17139563,4139.5,4139.4,0.002]
[1760299623234,31.17260641,4139.3,4139.2,0.002]
[1760299623538,33.3854636,4139.3,4139.2,0.002]
[1760299623703,5.6363246,4139.3,4139.2,0.002]
[1760299623909,27.1503856,4139.3,4139.2,0.002]
[1760299624738,8.569946,4139.3,4139.2,0.002]
[1760299625034,10.98581341,4139.3,4139.2,0.002]
[1760299625625,11.61941341,4139.3,4139.2,0.002]
[1760299625839,2.294,4139.3,4139.2,0.002]
[1760299626008,1.92,4139.3,4139.2,0.002]
[1760299626211,6.37399,4139.9,4139.3,2.41584419]
[1760299626552,6.37399,4139.9,4139.2,2.41792166]
[1760299626706,7.26999,4139.9,4139.2,2.41792166]
[1760299626914,1.374,4140.0,4139.2,0.002]
[1760299627129,5.877266,4139.9,4139.2,0.002]
[1760299627328,0.6336,4139.7,4139.2,2.41791204]
[1760299627717,0.374,4139.6,4139.2,2.41791204]
[1760299628044,0.6336,4139.9,4139.2,2.41791204]
[1760299628045,0.374,4139.5,4139.2,2.41791204]
[1760299628225,0.374,4139.8,4139.2,2.41791204]
[1760299628425,0.374,4139.8,4139.3,2.41586287]
[1760299628943,0.374,4139.7,4139.3,2.41586287]
[1760299629150,0.374,4139.6,4139.3,2.41586287]
[1760299629314,0.374,4139.6,4139.2,2.41790843]
[1760299629820,0.494,4139.5,4139.2,2.41790843]
[1760299630016,0.374,4139.4,4139.2,2.41790843]
[1760299630210,0.374,4139.4,4139.3,2.41586741]
[1760299630614,0.12,4139.5,4139.3,2.41586741]
[1760299631218,0.12,4139.5,4139.2,2.41790768]
[1760299631520,0.494,4139.5,4139.2,2.41790768]
[1760299631721,0.374,4139.4,4139.2,2.41790768]
[1760299631961,0.374,4139.3,4139.2,2.41790768]
[1760299632618,0.12,4139.5,4139.2,2.41790768]
[1760299632939,0.374,4139.3,4139.2,0.002]
[1760299633427,0.12,4139.5,4139.2,2.41792578]
[1760299633627,0.494,4139.5,4139.3,2.41586141]
[1760299634056,0.494,4139.5,4139.2,2.41791281]
[1760299634443,0.494,4139.5,4139.3,0.002]
[1760299635040,0.12,4139.5,4139.3,0.002]
[1760299635752,0.12,4139.5,4139.3,2.41786477]
[1760299635960,0.374,4139.4,4139.3,0.002]
[1760299637849,0.12,4139.5,4139.3,0.002]
[1760299638163,1.1,4140.0,4139.9,2.41551728]
[1760299638393,1.1,4140.0,4139.9,2.96631728]
[1760299639382,1.1,4140.0,4139.9,0.12]
[1760299639586,1.1,4140.0,4139.5,2.41573279]
[1760299639786,1.1,4140.0,4139.6,0.12]
[1760299639993,1.4915,4140.0,4139.6,0.12]
[1760299640288,1.1,4140.0,4139.6,2.53566521]
[1760299640652,1.0251,4139.9,4139.3,0.002]
[1760299640987,0.12,4139.7,4139.3,0.002]
[1760299641186,0.12,4139.7,4139.3,2.41782574]
[1760299641558,0.12,4139.7,4139.3,0.49778045]
[1760299641890,1.1,4140.0,4139.6,2.41564836]
[1760299642186,1.1,4140.0,4139.8,2.41555684]
[1760299642692,1.1,4140.0,4139.7,2.41561974]
[1760299643452,1.1,4140.0,4139.9,2.41551728]
[1760299643683,1.1,4140.0,4139.6,2.41563702]
[1760299644259,1.1,4140.0,4139.4,2.53579007]
[1760299644260,1.1,4140.0,4139.8,2.41556735]
[1760299645068,1.1,4140.0,4139.5,2.41574066]
[1760299645069,1.1,4140.0,4139.5,2.41575069]
[1760299645283,1.1,4140.0,4139.9,2.53551728]
[1760299645492,1.1,4140.0,4139.9,2.96631728]
[1760299646885,1.1,4140.0,4139.9,2.53551728]
[1760299647596,1.1,4140.0,4139.9,2.96631728]
[1760299648384,1e-08,4140.0,4139.9,2.96631728]
[1760299648554,1e-08,4140.0,4139.9,3.50450839]
[1760299650593,1e-08,4140.0,4139.9,3.38450839]
[1760299650893,1e-08,4140.0,4139.9,3.50450839]
[1760299651258,1e-08,4140.0,4139.9,6.05810839]
[1760299651459,1e-08,4140.0,4139.9,5.93810839]
[1760299651655,1e-08,4140.0,4139.9,6.05810839]
[1760299652697,0.00100001,4140.0,4139.9,6.05810839]
[1760299654369,0.001,4140.5,4139.9,6.05810839]
[1760299654370,0.001,4140.5,4140.4,2.41522558]
[1760299654569,0.001,4140.5,4140.4,17.81467972]
[1760299654778,0.001,4140.5,4140.4,17.93467972]
[1760299655103,0.001,4140.5,4140.4,18.36547972]
[1760299656193,0.001,4140.5,4140.4,20.28547972]
[1760299656789,0.001,4140.5,4140.4,5.76114814]
[1760299658204,0.001,4140.5,4140.4,20.91907972]
[1760299658586,0.001,4140.5,4140.4,21.01588947]
[1760299659298,0.001,4140.5,4140.4,5.85795789]
[1760299659499,0.001,4140.5,4140.4,5.22435789]
[1760299661878,1e-08,4142.4,4142.3,2.41411776]
[1760299662078,0.001,4142.8,4142.7,2.41388466]
[1760299662575,2.84989121,4144.6,4142.7,2.41388466]
[1760299662576,0.001,4144.6,4142.7,0.4308]
[1760299662827,0.001,4144.6,4142.2,0.2164]
[1760299662828,0.001,4144.6,4144.3,2.41295273]
[1760299663181,0.001,4144.6,4144.3,2.84375273]
[1760299663844,0.001,4144.6,4144.3,2.41295273]
[1760299665118,2.41382324,4144.6,4143.3,0.4308]
[1760299665318,0.4371,4144.4,4143.6,2.41335284]
[1760299665821,0.4371,4144.4,4143.9,2.41317525]
[1760299666128,0.4371,4144.4,4143.7,2.41325462]
[1760299666304,0.4371,4144.4,4143.8,2.41323003]
[1760299666990,0.4371,4144.4,4143.9,2.41317668]
[1760299667306,1.92,4144.5,4143.9,2.41317668]
[1760299667705,1.92,4144.5,4142.6,2.4139209]
[1760299667706,0.6336,4144.5,4142.7,0.4302]
[1760299667914,2.41312674,4144.1,4143.3,2.41353344]
[1760299668233,3.04649939,4144.4,4143.5,2.41337743]
[1760299668407,0.6336,4144.2,4143.5,2.41337743]
[1760299669030,2.5536,4144.1,4143.5,2.41337743]
[1760299669732,3.04669641,4144.1,4143.3,2.41352217]
[1760299669894,4.33313232,4144.0,4143.3,2.41352217]
[1760299670213,4.33313232,4144.0,4143.1,2.84380633]
[1760299670214,1.92,4144.0,4143.4,2.41346852]
[1760299671012,4.70792801,4144.0,4142.9,2.41371846]
[1760299671214,4.70792801,4144.0,4143.3,2.41352703]
[1760299672094,4.82792801,4144.0,4143.3,2.53352703]
[1760299672290,4.82792801,4144.0,4143.3,0.12]
[1760299672291,0.6336,4143.8,4143.3,0.12]
[1760299672493,0.2363,4143.4,4142.0,2.41425485]
[1760299672820,2.41347791,4143.4,4142.7,2.41383382]
[1760299673203,2.41343066,4143.5,4142.8,2.41382292]
[1760299673611,2.41343066,4143.5,4142.7,2.41386568]
[1760299673809,2.41349235,4143.4,4142.7,2.41386568]
[1760299674333,2.41343761,4143.5,4142.7,2.41386568]
[1760299674629,2.5536,4143.5,4142.9,2.41376463]
[1760299675737,3.04701922,4143.5,4142.9,2.41376463]
[1760299675945,3.04701922,4143.5,4142.8,2.41380689]
[1760299676714,2.194376,4143.5,4142.9,2.41376327]
[1760299676954,5.10877692,4143.6,4143.0,2.41368687]
[1760299676955,0.6336,4143.6,4143.0,2.41368687]
[1760299677130,2.5536,4143.6,4142.9,2.41375206]
[1760299677326,0.6336,4143.5,4142.9,2.41375206]
[1760299677648,2.5536,4143.5,4142.9,2.41375206]
[1760299677863,2.5536,4143.5,4142.4,0.4389]
[1760299677864,3.04702722,4143.5,4142.8,2.41382091]
[1760299678367,2.5536,4143.6,4142.8,2.85271284]
[1760299678518,0.6336,4143.6,4142.8,2.85271284]
[1760299678821,0.6336,4143.6,4143.0,2.41366511]
[1760299679218,0.6336,4143.5,4142.9,2.41376813]
[1760299679414,0.6336,4143.7,4143.1,2.41361201]
[1760299679825,2.0628,4143.6,4143.0,2.41369139]
[1760299680215,0.43565719,4144.5,4142.7,2.41388466]
[1760299680516,0.001,4144.7,4142.9,2.41376813]
[1760299680716,0.001,4144.7,4143.8,2.41323194]
[1760299680915,0.001,4144.7,4143.0,0.4389]
[1760299681165,0.001,4144.7,4143.4,0.4389]
[1760299681521,0.001,4144.7,4144.1,2.41306918]
[1760299681942,0.001,4144.7,4144.1,2.85196918]
[1760299683251,2.5546,4144.6,4143.6,0.4389]
[1760299683456,3.04739047,4144.6,4143.9,2.41313165]
[1760299683752,0.6346,4144.6,4144.0,2.41312669]
[1760299683953,3.04738268,4144.6,4143.6,0.4389]
[1760299684139,0.6346,4144.6,4144.0,2.41312447]
[1760299684317,0.6346,4144.6,4143.2,2.41358788]
[1760299684318,0.6346,4144.6,4143.7,2.41327896]
[1760299684521,2.5546,4144.6,4144.0,2.41312644]
[1760299684752,2.5546,4144.6,4143.9,2.41317387]
[1760299685349,2.5546,4144.6,4144.0,2.41311252]
[1760299685551,0.001,4144.6,4144.0,2.85202741]
[1760299685862,0.001,4144.6,4144.1,0.4389]
[1760299686231,0.001,4144.6,4144.1,2.85196918]
[1760299686461,0.001,4144.6,4144.1,3.37847884]
[1760299687743,0.001,4144.6,4144.1,2.85196918]
[1760299689156,0.001,4144.6,4143.5,2.4134186]
[1760299689355,0.001,4144.6,4143.9,2.41318371]
[1760299689659,0.001,4144.6,4144.0,2.41312741]
[1760299689859,0.001,4144.6,4144.1,2.41306918]
[1760299690057,0.001,4144.6,4144.1,3.33458884]
[1760299692558,0.001,4144.6,4144.1,3.45458884]
[1760299695068,0.001,4144.6,4144.1,2.97196918]
[1760299703179,0.001,4144.6,4144.1,0.12]
[1760299703478,0.1446,4144.2,4143.8,2.41323281]
[1760299703678,0.1446,4144.2,4143.8,2.53323281]
[1760299703843,0.001,4144.2,4143.8,2.53323281]
[1760299704041,0.1446,4144.2,4143.8,2.53323281]
[1760299704773,0.1436,4144.1,4143.8,2.53323281]
[1760299705075,1.92,4143.7,4143.2,2.41358073]
[1760299705256,0.144,4143.6,4143.2,0.12]
[1760299705749,0.144,4143.6,4143.2,2.53355186]
[1760299706151,0.144,4143.6,4143.3,2.41552615]
[1760299707179,0.144,4143.6,4143.4,2.41346066]
[1760299707478,0.3459,4143.9,4143.3,2.41552427]
[1760299707976,4.303049,4143.8,4143.3,2.41552427]
[1760299708177,2.064,4143.8,4143.3,2.41552427]
[1760299708349,2.064,4143.7,4143.3,0.002]
[1760299708672,0.144,4143.7,4143.3,0.002]
[1760299708880,0.144,4143.6,4143.3,0.002]
[1760299709187,6.169264,4143.4,4143.3,0.002]
[1760299709683,6.313264,4143.4,4143.3,0.002]
[1760299709888,0.12,4143.5,4143.3,0.002]
[1760299710577,3.04672127,4144.1,4143.5,2.4134186]
[1760299710578,0.12,4144.1,4143.5,2.4134186]
[1760299710796,4.33402415,4144.2,4143.4,0.4694]
[1760299710797,0.001,4144.2,4143.4,0.4694]
[1760299710950,1.0,4144.0,4143.7,0.12]
[1760299711152,1.0,4144.0,4143.8,2.41324388]
[1760299711494,1.0,4144.0,4143.9,2.41318564]
[1760299711854,1.0,4144.0,4143.8,2.41323516]
[1760299712590,1.0,4144.0,4143.7,0.12]
[1760299712591,1.0,4144.0,4143.7,2.53329712]
[1760299715090,1.0,4144.0,4143.7,0.12]
[1760299715690,1.0,4144.0,4143.3,0.002]
[1760299715986,1.0,4144.0,4143.6,2.41331362]
[1760299717159,1.0,4144.0,4143.5,2.53341541]
[1760299718466,1.0,4144.0,4143.5,0.12]
[1760299718789,1.0,4144.0,4143.7,2.41329616]
[1760299718990,1.0,4144.0,4143.8,2.88261325]
[1760299719171,1.0,4144.0,4143.7,0.12]
[1760299719881,1.0,4144.0,4143.8,2.41323095]
[1760299720696,1.92,4143.8,4143.3,0.002]
[1760299720860,0.4896,4143.9,4143.3,0.002]
[1760299721368,0.12,4143.9,4143.3,0.002]
[1760299721569,1.0,4144.0,4143.4,0.4694]
[1760299721791,1.0,4144.0,4143.9,2.41318564]
[1760299722089,1.0,4144.0,4143.9,3.37723442]
[1760299723793,1.001,4144.0,4143.9,3.37723442]
[1760299724580,1.001,4144.0,4143.9,2.41318564]
[1760299724780,1.001,4144.0,4143.8,0.12]
[1760299725195,1.001,4144.0,4143.7,2.41328128]
[1760299725595,1.001,4144.0,4143.8,2.41319989]
[1760299725896,1.001,4144.0,4143.9,2.41318564]
[1760299726498,1.001,4144.0,4143.3,0.002]
[1760299726667,1.001,4144.0,4143.4,2.41342721]
[1760299727182,1.001,4144.0,4143.5,2.41340387]
[1760299727386,0.2247,4143.6,4143.3,0.002]
[1760299728168,0.1008,4143.8,4143.3,2.41553456]
[1760299728373,0.1008,4143.8,4143.3,0.002]
[1760299728374,0.1021,4143.7,4143.3,0.002]
[1760299728987,0.1021,4143.7,4143.3,2.41553467]
[1760299729273,17.45253797,4143.4,4141.7,0.436]
[1760299729495,2.21285719,4143.3,4142.1,0.2333]
[1760299729700,0.6336,4143.2,4142.2,0.436]
[1760299730004,1.92,4143.1,4142.3,2.414069]
[1760299730201,1.92,4143.1,4142.4,2.41604307]
[1760299730913,1.92,4143.3,4142.4,0.002]
[1760299731109,0.2234,4143.9,4142.4,0.002]
[1760299731110,15.53253797,4143.4,4142.4,0.002]
[1760299731405,0.1017,4143.0,4142.4,0.002]
[1760299731606,2.51541865,4143.0,4142.4,0.002]
[1760299731804,3.14906813,4142.9,4142.4,0.002]
[1760299732475,0.7353,4142.9,4142.4,0.002]
[1760299733493,0.6336,4142.9,4142.4,0.002]
[1760299733891,0.7353,4142.9,4142.4,0.002]
[1760299734085,2.6553,4142.9,4142.4,0.002]
[1760299735609,2.6553,4142.9,4142.4,2.41605803]